bitfinex/quotes_BTCUSD_20241107
["timestamp","ask_amount","ask_price","bid_price","bid_amount"]
[1731007475657,0.13224102,76143.0,76139.0,0.19758811]
[1731007476298,0.13224102,76143.0,76130.0,0.1]
[1731007476729,0.05365547,76145.0,76130.0,0.1]
[1731007476934,0.13224102,76144.0,76130.0,0.1]
[1731007477374,0.13224102,76144.0,76128.0,0.05413158]
[1731007477375,0.13224102,76144.0,76128.0,0.05365014]
[1731007477590,0.13224102,76144.0,76130.0,0.19758811]
[1731007479361,0.00451856,76142.0,76124.0,0.05416672]
[1731007479629,0.00451856,76140.0,76122.0,0.19758811]
[1731007479850,0.00451856,76137.0,76130.0,0.19758811]
[1731007480058,0.13224102,76136.0,76130.0,0.19758811]
[1731007480498,0.13224102,76136.0,76122.0,0.19758811]
[1731007481206,0.00459815,76148.0,76123.0,0.10048144]
[1731007481426,0.13224102,76140.0,76124.0,0.00048144]
[1731007481882,0.001666,76151.0,76130.0,0.19758811]
[1731007482095,0.184379,76150.0,76135.0,0.00040185]
[1731007482313,0.13175982,76150.0,76135.0,0.00040185]
[1731007483225,0.13175982,76150.0,76138.0,0.19758811]
[1731007483495,0.0120592,76149.0,76138.0,0.19758811]
[1731007483712,0.0120592,76148.0,76138.0,0.19758811]
[1731007483932,0.0120592,76147.0,76139.0,0.1]
[1731007484151,0.05529546,76151.0,76139.0,0.1]
[1731007484362,0.01206985,76150.0,76139.0,0.1]
[1731007484572,0.01206985,76149.0,76139.0,0.1]
[1731007484826,0.01206985,76148.0,76139.0,0.1]
[1731007485051,0.001666,76151.0,76139.0,0.1]
[1731007485052,0.01206985,76147.0,76139.0,0.1]
[1731007485277,0.01208959,76146.0,76139.0,0.1]
[1731007485495,0.01208959,76145.0,76142.0,0.00040185]
[1731007485734,0.01208959,76144.0,76143.0,0.00040185]
[1731007485956,0.001666,76151.0,76142.0,0.10040185]
[1731007486205,0.01209017,76150.0,76142.0,0.10040185]
[1731007486421,0.01209017,76149.0,76142.0,0.10040185]
[1731007486656,0.01209017,76148.0,76144.0,0.1]
[1731007486905,0.01209017,76147.0,76144.0,0.1]
[1731007487127,0.01209017,76146.0,76144.0,0.1]
[1731007487368,0.001666,76151.0,76144.0,0.1]
[1731007487369,0.01209017,76145.0,76144.0,0.1]
[1731007487805,0.01209017,76145.0,76144.0,0.00040185]
[1731007488521,0.01209017,76145.0,76144.0,0.32666002]
[1731007488794,0.001666,76151.0,76150.0,0.00040185]
[1731007489271,0.001666,76151.0,76150.0,0.13264287]
[1731007489501,0.001666,76151.0,76150.0,0.49391683]
[1731007489711,0.001666,76151.0,76150.0,0.49129088]
[1731007490603,0.001666,76151.0,76150.0,0.48427466]
[1731007491454,0.001666,76151.0,76150.0,0.47927466]
[1731007491623,0.001666,76151.0,76150.0,0.45627466]
[1731007491995,0.00161637,76151.0,76150.0,0.45627466]
[1731007492197,0.00161637,76151.0,76150.0,0.23764287]
[1731007492403,0.00113272,76151.0,76150.0,0.50391646]
[1731007492623,0.000745,76168.0,76167.0,0.00040185]
[1731007492843,0.000745,76168.0,76167.0,0.45627466]
[1731007494134,0.000745,76168.0,76167.0,0.71420597]
[1731007494367,0.19758811,76193.0,76187.0,0.00040185]
[1731007494368,0.01207553,76192.0,76187.0,0.00040185]
[1731007494587,0.19758811,76193.0,76187.0,0.00040185]
[1731007494816,0.01207494,76192.0,76187.0,0.00040185]
[1731007495067,0.01931988,76198.0,76187.0,0.00040185]
[1731007495282,0.01207462,76191.0,76187.0,0.00040185]
[1731007495505,0.01931988,76197.0,76187.0,0.00040185]
[1731007495724,0.01207212,76196.0,76189.0,0.32363179]
[1731007495934,0.000745,76208.0,76190.0,0.00040185]
[1731007495935,0.01931702,76207.0,76190.0,0.00040185]
[1731007496151,0.01207309,76198.0,76190.0,0.00040185]
[1731007496469,0.05282232,76208.0,76190.0,0.00040185]
[1731007496526,0.05282232,76208.0,76189.0,0.32363179]
[1731007496527,0.000745,76208.0,76192.0,0.1]
[1731007497915,0.000745,76208.0,76191.0,0.00040185]
[1731007498118,0.000745,76208.0,76192.0,0.1]
[1731007498335,0.000745,76208.0,76187.0,0.05278545]
[1731007498336,0.005745,76208.0,76187.0,0.05278545]
[1731007498554,0.01205454,76207.0,76188.0,0.19758811]
[1731007498763,0.01205454,76206.0,76188.0,0.19758811]
[1731007499001,0.01205454,76205.0,76188.0,0.19758811]
[1731007499216,0.01114328,76207.0,76188.0,0.19758811]
[1731007499426,0.01114328,76207.0,76179.0,0.19758811]
[1731007499427,0.005,76205.0,76179.0,0.19758811]
[1731007499641,0.000745,76208.0,76189.0,0.19758811]
[1731007499860,0.13224102,76204.0,76189.0,0.19758811]
[1731007500072,0.13224102,76204.0,76190.0,0.1]
[1731007500544,0.000745,76208.0,76190.0,0.1]
[1731007500764,0.13224102,76207.0,76191.0,0.19758811]
[1731007500980,0.13224102,76207.0,76192.0,0.1]
[1731007501657,0.13224102,76207.0,76179.0,0.25169483]
[1731007501658,0.005,76200.0,76179.0,0.25169483]
[1731007501880,0.005,76201.0,76179.0,0.25169483]
[1731007501881,0.005,76192.0,76187.0,0.19758811]
[1731007502092,0.13224102,76191.0,76187.0,0.19758811]
[1731007502305,0.1317577,76191.0,76187.0,0.19758811]
[1731007502536,0.1317577,76191.0,76171.0,0.19758811]
[1731007502537,0.005,76190.0,76171.0,0.19758811]
[1731007502750,0.01,76188.0,76183.0,0.19758811]
[1731007503030,0.13224102,76187.0,76171.0,0.19758811]
[1731007503241,0.17073876,76187.0,76179.0,0.19758811]
[1731007503462,0.13224102,76187.0,76179.0,0.19758811]
[1731007503700,0.03849774,76194.0,76179.0,0.19758811]
[1731007503913,0.13224102,76191.0,76179.0,0.19758811]
[1731007504355,0.13224102,76191.0,76171.0,0.19758811]
[1731007504356,0.005,76190.0,76172.0,0.1]
[1731007504573,0.13224102,76189.0,76180.0,0.19758811]
[1731007504785,0.13224102,76189.0,76172.0,0.1]
[1731007504998,0.17073876,76189.0,76172.0,0.1]
[1731007505221,0.13224102,76189.0,76179.0,0.19758811]
[1731007505433,0.005,76185.0,76172.0,0.1]
[1731007505652,0.13224102,76184.0,76172.0,0.1]
[1731007506946,0.13090417,76184.0,76172.0,0.1]
[1731007508934,0.13090417,76184.0,76166.0,0.05399631]
[1731007509163,0.13090417,76184.0,76173.0,0.19758811]
[1731007510572,0.005,76177.0,76172.0,0.000832]
[1731007510829,0.13224102,76176.0,76173.0,0.19758811]
[1731007511066,0.13224102,76176.0,76159.0,0.19758811]
[1731007511273,0.0120973,76175.0,76170.0,0.19758811]
[1731007511481,0.14433832,76174.0,76159.0,0.19758811]
[1731007511699,0.0120973,76173.0,76167.0,0.19758811]
[1731007511939,0.14433832,76172.0,76160.0,0.1]
[1731007512187,0.005,76167.0,76124.0,0.22863179]
[1731007512402,0.005,76164.0,76158.0,0.19758811]
[1731007512624,0.005,76159.0,76124.0,0.22363179]
[1731007512834,0.005,76166.0,76124.0,0.22363179]
[1731007512835,0.13724102,76158.0,76142.0,0.05297971]
[1731007513726,0.13724102,76158.0,76151.0,0.1]
[1731007514153,0.005,76157.0,76130.0,0.19842011]
[1731007514370,0.13224102,76158.0,76130.0,0.19842011]
[1731007514371,0.005,76154.0,76146.0,0.19758811]
[1731007514607,0.13224102,76153.0,76146.0,0.19758811]
[1731007515263,0.13224102,76153.0,76137.0,0.0521865]
[1731007515692,0.13224102,76153.0,76139.0,0.100832]
[1731007517248,0.11024458,76162.0,76139.0,0.100832]
[1731007517491,0.005,76167.0,76139.0,0.100832]
[1731007517492,0.005,76173.0,76147.0,0.1]
[1731007517709,0.19958811,76178.0,76147.0,0.1]
[1731007517710,0.19958811,76161.0,76147.0,0.1]
[1731007517928,0.005,76155.0,76139.0,0.000832]
[1731007518145,0.007,76149.0,76146.0,0.19758811]
[1731007518473,0.007,76149.0,76139.0,0.100832]
[1731007518474,0.13224102,76148.0,76147.0,0.19758811]
[1731007518699,0.13224102,76148.0,76139.0,0.100832]
[1731007519682,0.13724102,76148.0,76139.0,0.000832]
[1731007519908,0.015,76140.0,76139.0,0.000832]
[1731007520120,0.005,76133.0,76130.0,0.19842011]
[1731007520334,0.13224102,76132.0,76130.0,0.19842011]
[1731007520960,0.13224102,76132.0,76130.0,0.000832]
[1731007521785,0.005,76138.0,76130.0,0.000832]
[1731007521989,0.05445862,76135.0,76130.0,0.000832]
[1731007522448,0.13224102,76137.0,76135.0,0.00018513]
[1731007523210,0.005,76150.0,76136.0,0.19758811]
[1731007523418,0.13224102,76149.0,76135.0,0.00018513]
[1731007523619,0.13224102,76149.0,76136.0,0.19758811]
[1731007524027,0.005,76147.0,76135.0,0.00018513]
[1731007524230,0.13224102,76146.0,76136.0,0.19758811]
[1731007524872,0.13224102,76146.0,76144.0,0.19758811]
[1731007525074,0.13224102,76146.0,76135.0,0.00018513]
[1731007525280,0.13224102,76146.0,76140.0,0.19758811]
[1731007526145,0.005,76143.0,76135.0,0.00018513]
[1731007526360,0.13724102,76142.0,76135.0,0.00018513]
[1731007526574,0.002,76140.0,76135.0,0.00018513]
[1731007526985,0.13224102,76139.0,76135.0,0.00018513]
[1731007527223,0.005,76137.0,76135.0,0.00018513]
[1731007527439,0.13224102,76136.0,76135.0,0.00018513]
[1731007527647,0.13724102,76136.0,76135.0,0.00018513]
[1731007528075,0.13224102,76136.0,76135.0,0.00018513]
[1731007529368,0.14430353,76136.0,76135.0,0.00018513]
[1731007530216,0.13224102,76136.0,76135.0,0.00018513]
[1731007531092,0.17137994,76136.0,76135.0,0.00018513]
[1731007531300,0.14930243,76136.0,76135.0,0.00018513]
[1731007531724,0.14930569,76136.0,76135.0,0.00018513]
[1731007532147,0.14923422,76136.0,76135.0,0.00018513]
[1731007532374,0.14875076,76136.0,76135.0,0.00018513]
[1731007533864,0.14375076,76136.0,76135.0,0.00018513]
[1731007534089,0.13168609,76136.0,76135.0,0.00018513]
[1731007534536,0.13168609,76136.0,76135.0,0.00101913]
[1731007535251,0.14376233,76136.0,76135.0,0.00101913]
[1731007535458,0.13168609,76136.0,76135.0,0.00101913]
[1731007535721,0.01208006,76136.0,76135.0,0.00101913]
[1731007535952,0.13224102,76136.0,76135.0,0.00101913]
[1731007536630,0.14432677,76136.0,76135.0,0.00101913]
[1731007536856,0.29652103,76136.0,76130.0,0.000832]
[1731007537065,0.14432677,76135.0,76132.0,0.19758811]
[1731007537273,0.01208575,76134.0,76130.0,0.000832]
[1731007537505,0.14432677,76133.0,76130.0,0.000832]
[1731007537716,0.01208575,76132.0,76130.0,0.000832]
[1731007537929,0.15219426,76136.0,76130.0,0.000832]
[1731007537930,0.14432677,76131.0,76130.0,0.000832]
[1731007538792,0.30152103,76131.0,76130.0,0.000832]
[1731007539006,0.14932677,76131.0,76130.0,0.000832]
[1731007539217,0.1636708,76131.0,76130.0,0.000832]
[1731007539845,0.13224102,76131.0,76130.0,0.000832]
[1731007540757,0.16372171,76131.0,76130.0,0.000832]
[1731007541522,0.16338213,76131.0,76130.0,0.000832]
[1731007541856,0.21796102,76131.0,76130.0,0.000832]
[1731007542072,0.21596102,76131.0,76130.0,0.000832]
[1731007542298,0.21596102,76131.0,76130.0,0.00268647]
[1731007542517,0.08405958,76131.0,76130.0,0.000832]
[1731007542759,0.01210796,76131.0,76130.0,0.000832]
[1731007542981,0.0194132,76145.0,76130.0,0.00268116]
[1731007543209,0.01941491,76152.0,76130.0,0.00267322]
[1731007543418,0.03154918,76151.0,76133.0,0.1]
[1731007543643,0.01213427,76150.0,76133.0,0.1]
[1731007543885,0.01213427,76149.0,76134.0,0.00184297]
[1731007544111,0.13224102,76158.0,76134.0,0.00184297]
[1731007544328,0.01214138,76157.0,76134.0,0.00184297]
[1731007544563,0.1443824,76156.0,76134.0,0.00184297]
[1731007544783,0.01214138,76155.0,76135.0,0.1]
[1731007545001,0.22332798,76151.0,76137.0,0.1]
[1731007545218,0.1443824,76150.0,76137.0,0.1]
[1731007545448,0.0218557,76149.0,76138.0,0.00174753]
[1731007545667,0.1443824,76148.0,76138.0,0.00174753]
[1731007545906,0.01214138,76147.0,76138.0,0.00174753]
[1731007546122,0.1443824,76146.0,76138.0,0.00174753]
[1731007546348,0.01214138,76145.0,76138.0,0.00174753]
[1731007546578,0.13224102,76144.0,76138.0,0.00174753]
[1731007546829,0.14438423,76144.0,76138.0,0.00174753]
[1731007547039,0.001668,76157.0,76138.0,0.00174753]
[1731007547040,0.03,76139.0,76138.0,0.00174753]
[1731007547250,0.03,76139.0,76130.0,0.000832]
[1731007547251,0.005,76134.0,76130.0,0.000832]
[1731007547463,0.005,76134.0,76133.0,0.19758811]
[1731007547686,0.02928282,76134.0,76131.0,0.00175835]
[1731007547900,0.15652384,76133.0,76130.0,0.000832]
[1731007548172,0.02428282,76132.0,76130.0,0.000832]
[1731007548380,0.15652384,76131.0,76130.0,0.000832]
[1731007550197,0.20949012,76131.0,76130.0,0.000832]
[1731007550412,0.21649684,76131.0,76130.0,0.000832]
[1731007550637,0.21449684,76131.0,76130.0,0.000832]
[1731007551082,0.01,76112.0,76091.0,0.19758811]
[1731007551294,0.002,76100.0,76099.0,0.19758811]
[1731007551554,0.002,76100.0,76091.0,0.19758811]
[1731007551555,0.04,76096.0,76091.0,0.19758811]
[1731007551766,0.005,76084.0,76071.0,0.0004]
[1731007551996,0.26847275,76084.0,76071.0,0.0004]
[1731007552211,0.23547275,76084.0,76071.0,0.0004]
[1731007552426,0.14415781,76084.0,76071.0,0.0004]
[1731007553477,0.1979978,76084.0,76071.0,0.0004]
[1731007554344,0.18608101,76084.0,76071.0,0.0004]
[1731007554780,0.18608101,76084.0,76071.0,0.1004]
[1731007555201,0.18608101,76084.0,76071.0,0.0004]
[1731007557393,0.22332798,76090.0,76071.0,0.1004]
[1731007557623,0.32982913,76089.0,76071.0,0.1004]
[1731007557831,0.32982913,76089.0,76073.0,0.1]
[1731007558036,0.005,76088.0,76073.0,0.1]
[1731007558264,0.13224102,76087.0,76073.0,0.1]
[1731007560381,0.005,76095.0,76073.0,0.1]
[1731007560382,0.005,76105.0,76084.0,0.19758811]
[1731007560602,0.19758811,76100.0,76085.0,0.00262858]
[1731007560847,0.19758811,76099.0,76087.0,0.1]
[1731007561059,0.13224102,76108.0,76090.0,0.1]
[1731007561272,0.19758811,76101.0,76091.0,0.00262816]
[1731007561492,0.19758811,76109.0,76096.0,0.1]
[1731007561708,0.19758811,76109.0,76090.0,0.1]
[1731007561709,0.03298291,76108.0,76090.0,0.1]
[1731007561968,0.19758811,76120.0,76094.0,0.1]
[1731007562255,0.19758811,76112.0,76098.0,0.005]
[1731007562467,0.42091609,76120.0,76098.0,0.13224102]
[1731007562676,0.19758811,76111.0,76099.0,0.1]
[1731007562880,0.19758811,76120.0,76099.0,0.1]
[1731007563090,0.19758811,76120.0,76101.0,0.1]
[1731007563335,0.19758811,76120.0,76102.0,0.00262761]
[1731007563769,0.05411744,76129.0,76102.0,0.00262761]
[1731007563770,0.05411744,76129.0,76114.0,0.19758811]
[1731007563981,0.05411744,76129.0,76106.0,0.1]
[1731007563982,0.19758811,76124.0,76107.0,0.0026274]
[1731007564192,0.19758811,76134.0,76109.0,0.1]
[1731007564193,0.13224102,76133.0,76109.0,0.1]
[1731007564406,0.19758811,76125.0,76109.0,0.1]
[1731007565029,0.19758811,76116.0,76109.0,0.1]
[1731007565248,0.13224102,76133.0,76111.0,0.1]
[1731007565464,0.13224102,76133.0,76112.0,0.00262749]
[1731007565465,0.19758811,76124.0,76112.0,0.00262749]
[1731007565669,0.19758811,76134.0,76120.0,0.1]
[1731007565884,0.19758811,76134.0,76121.0,0.00262707]
[1731007566530,0.19758811,76142.0,76122.0,0.29758811]
[1731007566747,0.19758811,76142.0,76122.0,0.105]
[1731007566748,0.19758811,76134.0,76122.0,0.105]
[1731007566960,0.19758811,76134.0,76122.0,0.1]
[1731007567179,0.22332798,76138.0,76124.0,0.1]
[1731007567420,0.13224102,76133.0,76124.0,0.1]
[1731007567845,0.13224102,76133.0,76111.0,0.1]
[1731007568052,0.13224102,76133.0,76122.0,0.19758811]
[1731007568263,0.13224102,76133.0,76111.0,0.1]
[1731007568486,0.0132241,76132.0,76118.0,0.19758811]
[1731007568693,0.13224102,76131.0,76118.0,0.19758811]
[1731007569796,0.19758811,76130.0,76111.0,0.1]
[1731007570013,0.05706539,76133.0,76118.0,0.19758811]
[1731007570014,0.13224102,76129.0,76118.0,0.19758811]
[1731007570470,0.13224102,76129.0,76111.0,0.1]
[1731007571337,0.19758811,76128.0,76111.0,0.1]
[1731007571570,0.19758811,76128.0,76098.0,0.005]
[1731007571571,0.17043047,76127.0,76106.0,0.1]
[1731007571774,0.17043047,76127.0,76106.0,0.29758811]
[1731007571775,0.13224102,76127.0,76106.0,0.29758811]
[1731007572203,0.13224102,76127.0,76115.0,0.1]
[1731007572841,0.13224102,76127.0,76107.0,0.19758811]
[1731007572842,0.005,76121.0,76107.0,0.19758811]
[1731007573052,0.028,76123.0,76107.0,0.19758811]
[1731007573053,0.028,76119.0,76107.0,0.19758811]
[1731007573266,0.13224102,76118.0,76107.0,0.19758811]
[1731007573480,0.005,76115.0,76097.0,0.19758811]
[1731007573694,0.16024102,76114.0,76108.0,0.19758811]
[1731007573910,0.16024102,76114.0,76097.0,0.19758811]
[1731007575180,0.19758811,76112.0,76086.0,0.1]
[1731007575395,0.13224102,76111.0,76098.0,0.19758811]
[1731007575617,0.13224102,76111.0,76086.0,0.1]
[1731007575843,0.16802393,76111.0,76095.0,0.1]
[1731007576269,0.13224102,76111.0,76095.0,0.1]
[1731007576900,0.19758811,76112.0,76084.0,0.000835]
[1731007576901,0.007,76102.0,76084.0,0.000835]
[1731007577111,0.023,76095.0,76093.0,0.19758811]
[1731007577394,0.023,76095.0,76084.0,0.000835]
[1731007577395,0.023,76091.0,76084.0,0.000835]
[1731007577592,0.13224102,76097.0,76084.0,0.000835]
[1731007577799,0.023,76096.0,76084.0,0.000835]
[1731007578224,0.13224102,76095.0,76084.0,0.000835]
[1731007578883,0.023,76096.0,76084.0,0.000835]
[1731007578884,0.19758811,76094.0,76084.0,0.000835]
[1731007579103,0.028,76087.0,76084.0,0.000835]
[1731007579338,0.13224102,76086.0,76084.0,0.000835]
[1731007580653,0.13724102,76086.0,76085.0,0.19758811]
[1731007580876,0.13724102,76086.0,76084.0,0.000835]
[1731007582894,0.18957652,76086.0,76084.0,0.000835]
[1731007583551,0.18457652,76086.0,76084.0,0.000835]
[1731007585787,0.0523355,76086.0,76085.0,0.19758811]
[1731007586000,0.0523355,76086.0,76084.0,0.000835]
[1731007586221,0.005,76101.0,76084.0,0.000835]
[1731007586460,0.13224102,76101.0,76084.0,0.000835]
[1731007586975,0.01207879,76100.0,76085.0,0.19758811]
[1731007587184,0.13224102,76101.0,76085.0,0.19758811]
[1731007587185,0.13224102,76099.0,76085.0,0.19758811]
[1731007587624,0.13224102,76099.0,76084.0,0.000835]
[1731007587625,0.19758811,76088.0,76084.0,0.000835]
[1731007587850,0.005,76101.0,76084.0,0.000835]
[1731007587851,0.13224102,76087.0,76085.0,0.19758811]
[1731007588098,0.13224102,76087.0,76084.0,0.000835]
[1731007590603,0.185377,76087.0,76084.0,0.000835]
[1731007591050,0.18330904,76087.0,76084.0,0.000835]
[1731007595562,0.00167,76091.0,76084.0,0.000835]
[1731007595794,0.00167,76091.0,76086.0,0.32332798]
[1731007596033,0.00167,76091.0,76087.0,0.00262831]
[1731007596274,0.00167,76091.0,76089.0,0.1]
[1731007596492,0.00167,76091.0,76090.0,0.00262798]
[1731007597015,0.00167,76091.0,76090.0,0.271119]
[1731007597237,0.00167,76091.0,76090.0,0.24224102]
[1731007597469,0.00167,76091.0,76090.0,0.24724102]
[1731007597692,0.19925811,76112.0,76104.0,0.1]
[1731007598404,0.00167,76112.0,76104.0,0.1]
[1731007598853,0.00167,76112.0,76090.0,0.005]
[1731007599072,0.00167,76112.0,76101.0,0.1]
[1731007599287,0.13224102,76111.0,76101.0,0.1]
[1731007600179,0.13224102,76111.0,76091.0,0.00262815]
[1731007600399,0.13224102,76111.0,76097.0,0.19758811]
[1731007600629,0.13224102,76111.0,76098.0,0.1]
[1731007602137,0.13224102,76111.0,76089.0,0.1]
[1731007602344,0.13224102,76111.0,76098.0,0.1]
[1731007602559,0.13224102,76111.0,76089.0,0.1]
[1731007602785,0.13224102,76111.0,76098.0,0.1]
[1731007602786,0.14563212,76111.0,76098.0,0.1]
[1731007603022,0.18660978,76111.0,76098.0,0.1]
[1731007603719,0.18660978,76111.0,76092.0,0.015]
[1731007603720,0.18660978,76111.0,76100.0,0.1]
[1731007603945,0.05436876,76111.0,76100.0,0.1]
[1731007604386,0.00167,76112.0,76100.0,0.1]
[1731007604822,0.00167,76112.0,76094.0,0.1]
[1731007605028,0.00167,76112.0,76099.0,0.1]
[1731007605464,0.13224102,76111.0,76099.0,0.1]
[1731007605690,0.13224102,76111.0,76099.0,0.29758811]
[1731007605925,0.00167,76112.0,76109.0,0.1]
[1731007607092,0.00167,76112.0,76107.0,0.10262755]
[1731007607376,0.00167,76112.0,76099.0,0.05414127]
[1731007607807,0.00167,76112.0,76098.0,0.005]
[1731007608506,0.00167,76112.0,76097.0,0.1]
[1731007608737,0.00167,76112.0,76098.0,0.005]
[1731007611430,0.00167,76112.0,76097.0,0.28639294]
[1731007611660,0.00167,76112.0,76098.0,0.005]
[1731007612113,0.00167,76112.0,76107.0,0.1]
[1731007612356,0.00167,76112.0,76108.0,0.00262749]
[1731007612783,0.00167,76112.0,76110.0,0.1]
[1731007613003,0.00167,76112.0,76111.0,0.24986824]
[1731007613213,0.19758811,76126.0,76117.0,0.015]
[1731007613450,0.19758811,76126.0,76125.0,0.32332798]
[1731007613729,0.19758811,76136.0,76126.0,0.1]
[1731007614192,0.001668,76151.0,76126.0,0.1]
[1731007614878,0.001668,76151.0,76127.0,0.19758811]
[1731007615092,0.001668,76151.0,76128.0,0.1]
[1731007615324,0.001668,76151.0,76129.0,0.00262676]
[1731007615572,0.001668,76151.0,76133.0,0.22332798]
[1731007615817,0.001668,76151.0,76133.0,0.32595463]
[1731007616051,0.001668,76151.0,76133.0,0.32332798]
[1731007616343,0.05379319,76151.0,76133.0,0.32332798]
[1731007616564,0.001668,76151.0,76133.0,0.32332798]
[1731007619003,0.19925611,76151.0,76133.0,0.32332798]
[1731007619228,0.001668,76151.0,76143.0,0.002]
[1731007619445,0.001668,76151.0,76142.0,0.005]
[1731007619446,0.19758811,76150.0,76142.0,0.005]
[1731007619669,0.001668,76151.0,76142.0,0.005]
[1731007620556,0.001668,76151.0,76143.0,0.1]
[1731007621497,0.001668,76151.0,76149.0,0.1]
[1731007622863,0.001668,76151.0,76142.0,0.005]
[1731007623099,0.001668,76151.0,76145.0,0.1]
[1731007624247,0.001668,76151.0,76142.0,0.05277359]
[1731007624472,0.001668,76151.0,76141.0,0.005]
[1731007624688,0.001668,76151.0,76142.0,0.005]
[1731007625567,0.001668,76151.0,76142.0,0.00762639]
[1731007625772,0.001668,76151.0,76148.0,0.1]
[1731007626182,0.001668,76151.0,76149.0,0.00762625]
[1731007626405,0.001668,76151.0,76150.0,0.1]
[1731007627066,0.001668,76151.0,76150.0,0.105]
[1731007627281,0.001668,76151.0,76150.0,0.2498669]
[1731007627483,0.001668,76151.0,76150.0,0.24724102]
[1731007627710,0.001668,76151.0,76150.0,0.24986674]
[1731007629015,0.001668,76151.0,76150.0,0.24724102]
[1731007629285,0.001668,76151.0,76150.0,0.24986674]
[1731007629492,0.001668,76151.0,76150.0,0.24724102]
[1731007630116,0.001668,76151.0,76150.0,0.27611673]
[1731007630942,0.00109392,76151.0,76150.0,0.27611673]
[1731007631155,0.001668,76157.0,76150.0,0.27611673]
[1731007631156,0.001668,76157.0,76156.0,0.03125]
[1731007631374,0.001668,76157.0,76156.0,0.49944457]
[1731007631609,0.001664,76173.0,76167.0,0.32332798]
[1731007631883,0.001664,76173.0,76167.0,0.1]
[1731007632711,0.001664,76173.0,76162.0,0.1]
[1731007632936,0.001664,76173.0,76162.0,0.23224102]
[1731007633154,0.001664,76173.0,76162.0,0.1]
[1731007633607,0.001664,76173.0,76161.0,0.05205797]
[1731007633819,0.001664,76173.0,76163.0,0.1]
[1731007635111,0.00039039,76168.0,76159.0,0.05290963]
[1731007635320,0.00039039,76168.0,76160.0,0.19758811]
[1731007635545,0.00039039,76168.0,76161.0,0.1]
[1731007637065,0.19758811,76182.0,76161.0,0.1]
[1731007637287,0.18338514,76181.0,76154.0,0.15375597]
[1731007637497,0.005,76178.0,76160.0,0.19758811]
[1731007637713,0.023,76176.0,76160.0,0.19758811]
[1731007637921,0.16363418,76175.0,76160.0,0.19758811]
[1731007638141,0.0434707,76174.0,76160.0,0.19758811]
[1731007638397,0.023,76176.0,76160.0,0.19758811]
[1731007638398,0.17571172,76173.0,76160.0,0.19758811]
[1731007638614,0.03139316,76172.0,76160.0,0.19758811]
[1731007638831,0.16363418,76171.0,76160.0,0.19758811]
[1731007639046,0.03139316,76170.0,76160.0,0.19758811]
[1731007639261,0.16363418,76169.0,76160.0,0.19758811]
[1731007639470,0.01932407,76179.0,76160.0,0.19758811]
[1731007639471,0.03139316,76168.0,76161.0,0.1]
[1731007639735,0.03139316,76168.0,76160.0,0.19758811]
[1731007639736,0.01207429,76167.0,76163.0,0.1]
[1731007639941,0.13224102,76181.0,76163.0,0.1]
[1731007640168,0.36128194,76180.0,76163.0,0.1]
[1731007640389,0.03145281,76179.0,76163.0,0.1]
[1731007640610,0.14433825,76178.0,76163.0,0.1]
[1731007640821,0.03145281,76177.0,76163.0,0.1]
[1731007641062,0.03145281,76176.0,76163.0,0.1]
[1731007641275,0.03145281,76175.0,76163.0,0.1]
[1731007641482,0.13224102,76178.0,76163.0,0.1]
[1731007641483,0.13224102,76178.0,76168.0,0.19758811]
[1731007641713,0.05773472,76199.0,76171.0,0.22332798]
[1731007641943,0.05773472,76199.0,76169.0,0.123]
[1731007641944,0.000744,76228.0,76227.0,0.033]
[1731007642185,0.000744,76228.0,76227.0,0.33332798]
[1731007642186,0.01286966,76228.0,76227.0,0.33332798]
[1731007642404,0.000744,76228.0,76227.0,0.22832798]
[1731007642615,0.000744,76228.0,76227.0,0.105]
[1731007643047,0.0128592,76228.0,76227.0,0.105]
[1731007643269,0.000744,76228.0,76227.0,0.460569]
[1731007643768,0.000744,76228.0,76227.0,0.23724102]
[1731007644421,0.000744,76228.0,76227.0,0.460569]
[1731007645323,0.000744,76228.0,76227.0,0.465569]
[1731007645527,0.000744,76228.0,76227.0,0.475569]
[1731007646920,0.19677938,76259.0,76227.0,0.475569]
[1731007646921,0.19677938,76251.0,76250.0,0.02]
[1731007647124,0.19677938,76259.0,76253.0,0.022]
[1731007647379,0.19677938,76259.0,76258.0,0.043]
[1731007647602,0.19677938,76259.0,76258.0,0.50313312]
[1731007647813,0.19677938,76267.0,76266.0,0.022]
[1731007648027,0.19677938,76267.0,76266.0,0.50969724]
[1731007648250,0.19677938,76275.0,76274.0,0.02]
[1731007648514,0.19677938,76275.0,76274.0,0.475569]
[1731007648751,0.19677938,76307.0,76278.0,0.02]
[1731007648974,0.19677938,76307.0,76278.0,0.26136926]
[1731007649410,0.19677938,76307.0,76278.0,0.26399063]
[1731007649834,0.19677938,76307.0,76278.0,0.26136926]
[1731007650080,0.19677938,76307.0,76278.0,0.26399063]
[1731007650690,0.19677938,76307.0,76278.0,0.26136926]
[1731007651131,0.19677938,76307.0,76278.0,0.23724102]
[1731007651376,0.19677938,76307.0,76278.0,0.25636926]
[1731007651586,0.19677938,76307.0,76278.0,0.24636926]
[1731007651805,0.0104,76319.0,76298.0,0.043]
[1731007651806,0.19677938,76310.0,76298.0,0.043]
[1731007652024,0.19717938,76319.0,76304.0,0.36632798]
[1731007652025,0.19677938,76311.0,76304.0,0.36632798]
[1731007652238,0.19677938,76311.0,76304.0,0.39611428]
[1731007652667,0.19677938,76311.0,76304.0,0.37311428]
[1731007653305,0.19717938,76319.0,76304.0,0.5053553]
[1731007653969,0.19717938,76319.0,76318.0,0.005]
[1731007654177,0.19717938,76319.0,76318.0,0.460569]
[1731007654384,0.19717938,76319.0,76318.0,0.4696133]
[1731007654590,0.0004,76319.0,76318.0,0.4696133]
[1731007654795,0.0004,76319.0,76318.0,0.4746133]
[1731007655256,0.0004,76319.0,76318.0,0.4696133]
[1731007655476,0.0004,76319.0,76318.0,0.25128532]
[1731007655680,0.0004,76319.0,76318.0,0.25390532]
[1731007656113,0.0004,76319.0,76318.0,0.24890538]
[1731007658391,0.0004,76319.0,76318.0,0.24628532]
[1731007658621,0.0004,76319.0,76318.0,0.13724102]